fUSD/lending_fUSD_20260226
["ID","MTS","AMOUNT","RATE_DAILY","PERIOD"]
[406676466,1772065844097,-200.0,0.000176,6]
[406676467,1772065844106,-287.61899177,0.00017639,2]
[406676468,1772065844116,-1725.32718527,0.0001764,2]
[406676469,1772065844126,-491.0,0.00017644,2]
[406676470,1772065844136,-500.0,0.00017644,2]
[406676471,1772065844145,-150.0,0.00017644,2]
[406676472,1772065844155,-160.0,0.0001768,2]
[406676473,1772065844164,-160.0,0.0001768,2]
[406676474,1772065844173,-2843.0,0.0001768,2]
[406676475,1772065844183,-844.0,0.0001768,2]
[406676476,1772065844192,-491.0,0.00017699,2]
[406676477,1772065844201,-500.0,0.00017699,2]
[406676478,1772065844210,-150.0,0.00017699,2]
[406676479,1772065844219,-2000.0,0.000177,6]
[406676480,1772065844229,-200.0,0.000177,6]
[406676481,1772065844238,-284.92,0.00017726,2]
[406676482,1772065844247,-350.0,0.00017736,3]
[406676483,1772065844256,-491.0,0.00017753,2]
[406676484,1772065844266,-500.0,0.00017753,2]
[406676485,1772065844275,-229.08432386,0.00017753,2]
[406676486,1772065844284,-485.0,0.00017758,2]
[406676487,1772065844293,-150.0,0.00017759,2]
[406676488,1772065844302,-11087.89263458,0.0001778,2]
[406676489,1772065844311,-10000.0,0.0001779,2]
[406676490,1772065844320,-150.0,0.00017799,2]
[406676491,1772065844330,-150.0,0.00017799,2]
[406676492,1772065844339,-161.03271686,0.00017799,2]
[406676493,1772065844349,-150.0,0.00017799,2]
[406676494,1772065844359,-150.0,0.00017799,2]
[406676495,1772065844368,-150.0,0.00017799,2]
[406676496,1772065844377,-2600.0,0.000178,6]
[406676497,1772065844387,-800.0,0.000178,6]
[406676498,1772065844396,-1034.1,0.00017808,2]
[406676499,1772065844407,-500.0,0.00017808,2]
[406676500,1772065844417,-500.0,0.00017808,2]
[406676502,1772065844426,-500.0,0.00017808,2]
[406676503,1772065844435,-500.0,0.00017808,2]
[406676504,1772065844444,-622.72339987,0.00017808,2]
[406676505,1772065844453,-500.0,0.00017808,2]
[406676506,1772065844462,-500.0,0.00017808,2]
[406676507,1772065844471,-500.0,0.00017808,2]
[406676508,1772065844480,-500.0,0.00017808,2]
[406676509,1772065844489,-500.0,0.00017808,2]
[406676510,1772065844498,-500.0,0.00017808,2]
[406676511,1772065844511,-500.0,0.00017808,2]
[406676512,1772065844520,-500.0,0.00017808,2]
[406676513,1772065844531,-500.0,0.00017808,2]
[406676514,1772065844540,-500.0,0.00017808,2]
[406676515,1772065844550,-500.0,0.00017808,2]
[406676516,1772065844559,-500.0,0.00017808,2]
[406676517,1772065844568,-300.0,0.00017808,2]
[406676518,1772065844577,-500.0,0.00017808,2]
[406676519,1772065844588,-500.0,0.00017808,2]
[406676520,1772065844597,-500.0,0.00017808,2]
[406676521,1772065844606,-500.0,0.00017808,2]
[406676522,1772065844615,-500.0,0.00017808,2]
[406676523,1772065844624,-500.0,0.00017808,2]
[406676524,1772065844634,-410.0,0.00017808,2]
[406676525,1772065844643,-500.0,0.00017808,2]
[406676526,1772065844652,-491.0,0.00017808,2]
[406676527,1772065844662,-500.0,0.00017808,2]
[406676528,1772065844671,-800.0,0.00017808,2]
[406676529,1772065844680,-150.0,0.00017814,2]
[406676530,1772065844689,-1261.43918,0.0001782,2]
[406676531,1772065844699,-1261.43918,0.0001782,2]
[406676532,1772065844708,-150.0,0.00017832,2]
[406676533,1772065844717,-150467.7769945,0.00017852,2]
[406676534,1772065844725,-5629.4927549,0.00017852,2]
[406676535,1772065844734,-42047.7487683,0.00017852,2]
[406676536,1772065844743,-162.67,0.00017853,2]
[406676537,1772065844752,-200.0,0.00017856,2]
[406676538,1772065844761,-500.0,0.00017863,2]
[406676539,1772065844770,-491.0,0.00017863,2]
[406676540,1772065844778,-500.0,0.00017863,2]
[406676541,1772065844787,-350.0,0.00017865,2]
[406676542,1772065844796,-8666.0,0.00017866,2]
[406676543,1772065844806,-500.0,0.00017873,19]
[406676544,1772065844815,-508.88286319,0.00017881,2]
[406676545,1772065844824,-150.0,0.00017887,2]
[406676546,1772065844833,-350.04115682,0.0001789,3]
[406676547,1772065844842,-500.0,0.0001789,3]
[406676548,1772065844851,-151.0,0.0001789,3]
[406676549,1772065844860,-500.0,0.0001789,3]
[406676550,1772065844870,-151.0,0.0001789,3]
[406676551,1772065844880,-500.0,0.0001789,3]
[406676552,1772065844890,-151.0,0.0001789,3]
[406676553,1772065844898,-500.0,0.0001789,3]
[406676554,1772065844908,-151.0,0.0001789,3]
[406676555,1772065844918,-151.0,0.0001789,3]
[406676556,1772065844927,-151.0,0.0001789,3]
[406676557,1772065844936,-151.0,0.0001789,3]
[406676558,1772065844945,-151.0,0.0001789,3]
[406676559,1772065844954,-151.0,0.0001789,3]
[406676560,1772065844963,-153.74158134,0.0001789,3]
[406676561,1772065844972,-500.0,0.0001789,3]
[406676562,1772065844981,-693.3919763,0.0001789,3]
[406676563,1772065844990,-500.0,0.0001789,3]
[406676564,1772065844998,-719.04747942,0.0001789,3]
[406676565,1772065845008,-500.0,0.0001789,3]
[406676566,1772065845018,-745.65223616,0.0001789,3]
[406676567,1772065845028,-500.0,0.0001789,3]
[406676568,1772065845037,-500.0,0.0001789,3]
[406676569,1772065845046,-773.2413689,0.0001789,3]
[406676570,1772065845055,-500.0,0.0001789,3]
[406676571,1772065845064,-500.0,0.0001789,3]
[406676572,1772065845073,-801.85129955,0.0001789,3]
[406676573,1772065845082,-500.0,0.0001789,3]
[406676574,1772065845091,-500.0,0.0001789,3]
[406676575,1772065845100,-831.51979763,0.0001789,3]
[406676576,1772065845109,-500.0,0.0001789,3]
[406676577,1772065845118,-500.0,0.0001789,3]
[406676578,1772065845127,-862.28603014,0.0001789,3]
[406676579,1772065845136,-500.0,0.0001789,3]
[406676580,1772065845145,-484.51217363,0.0001789,3]
[406676581,1772065845155,-500.0,0.0001789,3]
[406676582,1772065845164,-500.0,0.0001789,3]
[406676583,1772065845173,-500.0,0.0001789,3]
[406676584,1772065845182,-500.0,0.0001789,3]
[406676585,1772065845191,-500.0,0.0001789,3]
[406676586,1772065845200,-500.0,0.0001789,3]
[406676587,1772065845210,-384.80531288,0.00017899,2]
[406676588,1772065845219,-200.0,0.00017899,2]
[406676589,1772065845228,-10183.0151,0.000179,2]
[406676590,1772065845237,-25000.0,0.000179,3]
[406676591,1772065845247,-434.37133882,0.000179,2]
[406676592,1772065845256,-961.64168307,0.000179,3]
[406676593,1772065845266,-2567.10318927,0.000179,2]
[406676595,1772065845275,-173.91437885,0.000179,3]
[406676596,1772065845285,-3664.57206307,0.000179,2]
[406676597,1772065845294,-18524.16239569,0.000179,2]
[406676598,1772065845303,-186.98492168,0.000179,2]
[406676599,1772065845312,-201.59337924,0.000179,3]
[406676600,1772065845321,-17081.06188502,0.000179,2]
[406676601,1772065845330,-150.0,0.00017905,2]
[406676602,1772065845339,-500.0,0.00017918,2]
[406676603,1772065845348,-491.0,0.00017918,2]
[406676604,1772065845358,-500.0,0.00017918,2]
[406676605,1772065845367,-507.0,0.00017918,2]
[406676606,1772065845377,-200.0,0.00017937,2]
[406676607,1772065845386,-150.0,0.00017942,2]
[406676608,1772065845396,-507.0,0.0001796,2]
[406676609,1772065845406,-150.0,0.00017968,2]
[406676610,1772065845416,-500.0,0.00017972,2]
[406676611,1772065845425,-491.0,0.00017973,2]
[406676612,1772065845434,-300.0,0.00017973,2]
[406676613,1772065845445,-171.63546736,0.00017975,2]
[406676614,1772065845454,-150.0,0.00017979,2]
[406676615,1772065845463,-168.0,0.00017985,2]
[406676616,1772065845472,-305.36921936,0.00017989,2]
[406676617,1772065845482,-150.0,0.0001799,2]
[406676618,1772065845492,-1296.47,0.0001799,2]
[406676619,1772065845502,-1219.12,0.0001799,2]
[406676620,1772065845518,-920.0,0.0001799,2]
[406676621,1772065845527,-1340.0,0.0001799,2]
[406676622,1772065845538,-5982.0,0.0001799,2]
[406676623,1772065845547,-305.36921936,0.0001799,2]
[406676624,1772065845558,-205.69883995,0.00017996,2]
[406676625,1772065845568,-235.08438852,0.00017996,2]
[406676626,1772065845577,-366.9520377,0.00017996,2]
[406676627,1772065845586,-312.96193972,0.00017996,2]
[406676628,1772065845597,-174.39668391,0.00017996,2]
[406676629,1772065845607,-186161.3928478,0.00017998,2]
[406676630,1772065845616,-500.0,0.00017998,20]
[406676631,1772065845626,-500.0,0.00017998,21]
[406676632,1772065845635,-500.0,0.00017998,21]
[406676633,1772065845646,-500.0,0.00017998,21]
[406676634,1772065845655,-350.75764164,0.00017998,21]
[406676635,1772065845664,-30000.0,0.00017999,2]
[406676636,1772065845674,-27441.91732024,0.00017999,3]
[406676637,1772065845683,-6953.23797751,0.00017999,4]
[406676638,1772065845693,-185.60108,0.00017999,2]
[406676639,1772065845702,-300.0,0.00017999,2]
[406676640,1772065845711,-300.0,0.00017999,2]
[406676641,1772065845721,-379.38237266,0.00017999,2]
[406676642,1772065845730,-215.0,0.00018,2]
[406676643,1772065845739,-150.0,0.00018,2]
[406676644,1772065845749,-150.0,0.00018,2]
[406676645,1772065845758,-150.0,0.00018,2]
[406676646,1772065845767,-150.0,0.00018,2]
[406676647,1772065845776,-150.0,0.00018,2]
[406676648,1772065845785,-150.0,0.00018,2]
[406676649,1772065845795,-150.0,0.00018,2]
[406676650,1772065845804,-150.0,0.00018,2]
[406676651,1772065845814,-150.135,0.00018,2]
[406676652,1772065845823,-43976.02813451,0.00018,2]
[406676656,1772065846205,-3497.0,0.00016972,2]
[406676657,1772065846214,-9443.55648981,0.00018,2]
[406676658,1772065846225,-445.90494493,0.00018,2]
[406676659,1772065846235,-1158.91537295,0.00018,2]
[406676660,1772065846373,-5100.93599827,0.00018,2]
[406676661,1772065846384,-1036.94153083,0.00018,2]
[406676662,1772065846396,-16512.63184029,0.00018,2]
[406676663,1772065846408,-7595.19730418,0.00018,2]
[406676664,1772065846588,-413.18,0.00013555,2]
[406676667,1772066323755,-500.0,7.721e-05,2]
[406676668,1772066323796,-427.5424224,7.721e-05,2]
[406676669,1772066323835,-221.95784689,7.721e-05,2]
[406676670,1772066323874,-500.0,7.721e-05,2]
[406676671,1772066323907,-500.18048843,7.721e-05,2]
[406676672,1772066323942,-500.0,7.721e-05,2]
[406676673,1772066323977,-500.0,7.721e-05,2]
[406676674,1772066324022,-500.0,7.721e-05,2]
[406676675,1772066324051,-500.0,7.721e-05,2]
[406676676,1772066324341,-481.53317683,7.721e-05,2]
[406676677,1772066324372,-500.0,7.721e-05,2]
[406676678,1772066324401,-500.0,7.721e-05,2]
[406676679,1772066324430,-178.85486644,7.721e-05,2]
[406676680,1772066324456,-500.0,7.721e-05,2]
[406676681,1772066324481,-1200.0,7.721e-05,2]
[406676682,1772066324506,-150.0,7.721e-05,2]
[406676683,1772066324531,-300.0,7.721e-05,2]
[406676684,1772066324558,-250.0,7.721e-05,2]
[406676685,1772066324583,-6743.6302,7.722e-05,2]
[406676686,1772066324612,-10046.30099901,7.722e-05,2]
[406676687,1772066325480,-25000.0,7.722e-05,2]
[406676688,1772066326615,-25000.0,7.722e-05,2]
[406676689,1772066358237,-150.0,7.721e-05,2]
[406676690,1772066358268,-24850.0,7.722e-05,2]
[406677033,1772067031537,-1521.733,7.469e-05,2]
[406677034,1772067031547,-201.146,7.469e-05,2]
[406677035,1772067031557,-795.90606904,7.52e-05,2]
[406677036,1772067031568,-404.09393096,7.52e-05,2]
[406677037,1772067031577,-299.27969568,7.521e-05,2]
[406677038,1772067031587,-505.37049282,7.521e-05,2]
[406677039,1772067031596,-164.61479743,7.521e-05,2]
[406677040,1772067031605,-186.53942961,7.521e-05,2]
[406677041,1772067031615,-300.0,7.521e-05,2]
[406677042,1772067031626,-150.0,7.521e-05,2]
[406677043,1772067031635,-300.0,7.521e-05,2]
[406677053,1772067031788,-5803.56693787,7.522e-05,2]
[406677055,1772067031801,-159597.17953942,7.522e-05,2]
[406677056,1772067031812,-46589.43107722,7.522e-05,2]
[406677058,1772067031824,-11758.78299238,7.522e-05,2]
[406677060,1772067031835,-43620.81426333,7.522e-05,2]
[406677062,1772067031846,-909.6234621,7.522e-05,2]
[406677063,1772067031860,-1703.04317917,7.522e-05,2]
[406677065,1772067031879,-2920.0,7.522e-05,2]
[406677067,1772067031889,-18859.80447277,7.522e-05,2]
[406677068,1772067031900,-465.18605663,7.522e-05,2]
[406677070,1772067031917,-2410.62805522,7.522e-05,2]
[406677072,1772067031928,-716.51117773,7.522e-05,2]
[406677074,1772067031940,-739.83242181,7.522e-05,2]
[406677075,1772067031951,-1422.63899574,7.522e-05,2]
[406677215,1772067037638,-2474.53704796,7.522e-05,2]
[406677216,1772067037693,-750.0,7.522e-05,2]
[406677251,1772067039787,-1694599.40102395,7.522e-05,2]
[406677252,1772067039841,-1253.1051494,7.522e-05,2]
[406677253,1772067039852,-341.535,7.522e-05,2]
[406677254,1772067039894,-1058.577,7.522e-05,2]
[406677265,1772067045573,-2005.8021473,7.522e-05,2]
[406677266,1772067045582,-4132.8248,7.522e-05,2]
[406677267,1772067045591,-250.0,7.545e-05,2]
[406677269,1772067045600,-966.6554,7.621e-05,2]
[406677270,1772067045610,-500.0,7.621e-05,2]
[406677271,1772067045619,-138.39264906,7.622e-05,2]
[406677272,1772067045718,-5291.81252443,7.622e-05,2]
[406677273,1772067045731,-2318.58522198,7.622e-05,2]
[406677275,1772067045772,-973.00923496,7.622e-05,2]
[406677294,1772067369386,1281.76,4.714e-05,2]
[406677295,1772067369606,1281.76,4.917e-05,2]
[406677296,1772067369816,1281.76,5.12e-05,2]
[406677297,1772067370048,1154.73,5.322e-05,2]
[406677298,1772067370069,127.03,5.322e-05,2]
[406677299,1772067370306,1281.76,5.525e-05,2]
[406677300,1772067370521,1281.76,5.728e-05,2]
[406677301,1772067370754,1281.76,5.931e-05,2]
[406677302,1772067370949,1027.7,6.134e-05,2]
[406677303,1772067370974,254.06,6.134e-05,2]
[406677304,1772067371142,1281.76,6.337e-05,2]
[406677306,1772067513357,-1281.76,6.54e-05,2]
[406677307,1772067603351,900.0,7.195e-05,7]
[406677308,1772067603499,308.51365897,6.522e-05,2]
[406677311,1772067750475,3197.0,6.54e-05,2]
[406677314,1772067769466,1131.29167252,6.54e-05,2]
[406677352,1772068043901,4600.0,8.9e-05,3]
[406677353,1772068046032,6900.0,9e-05,3]
[406677467,1772068185177,163.0,9e-05,30]
[406677482,1772068231654,-150.0,6.742e-05,2]
[406677484,1772068231664,-1200.0,6.742e-05,2]
[406677486,1772068231673,-208.0,6.742e-05,2]
[406677488,1772068231682,-551.64631498,6.743e-05,2]
[406677490,1772068231763,-572.84682148,6.743e-05,2]
[406677491,1772068231819,-157.26686354,6.743e-05,2]
[406677492,1772068231828,-500.0,6.743e-05,2]
[406677493,1772068231838,-296.67504961,6.743e-05,2]
[406677494,1772068231851,-203.32495039,6.743e-05,2]
[406677495,1772068231861,-500.0,6.743e-05,2]
[406677496,1772068231870,-500.0,6.743e-05,2]
[406677497,1772068231880,-500.0,6.743e-05,2]
[406677498,1772068231891,-500.0,6.743e-05,2]
[406677499,1772068231900,-500.0,6.743e-05,2]
[406677500,1772068231909,-500.0,6.743e-05,2]
[406677501,1772068231918,-204.15903203,6.743e-05,2]
[406677502,1772068231927,-37901.47,6.768e-05,2]
[406677504,1772068231937,-1600.0,6.78e-05,2]
[406677506,1772068231946,-500.0,6.873e-05,2]
[406677507,1772068231955,-500.0,6.873e-05,2]
[406677508,1772068231964,-500.0,6.873e-05,2]
[406677509,1772068231973,-500.0,6.873e-05,2]
[406677510,1772068231984,-500.0,6.873e-05,2]
[406677511,1772068231993,-195.89534376,6.873e-05,2]
[406677512,1772068232003,-1281.76,6.946e-05,2]
[406677513,1772068232012,-50528.61299077,7e-05,2]
[406677514,1772068232021,-200.0,7.097e-05,2]
[406677515,1772068232030,-1281.76,7.149e-05,2]
[406677516,1772068232039,-2106.34,7.158e-05,2]
[406677517,1772068232049,-1050.0,7.158e-05,2]
[406677518,1772068232058,-1852.42,7.195e-05,2]
[406677519,1772068232067,-706.0,7.312e-05,2]
[406677520,1772068232077,-6563.74,7.314e-05,2]
[406677521,1772068232085,-201.147,7.314e-05,2]
[406677522,1772068232095,-1217.387,7.314e-05,2]
[406677523,1772068232104,-163.0,7.322e-05,2]
[406677524,1772068232113,-1281.76,7.352e-05,2]
[406677525,1772068232122,-250.0,7.416e-05,2]
[406677526,1772068232131,-250.0,7.416e-05,2]
[406677527,1772068232141,-250.0,7.416e-05,2]
[406677528,1772068232151,-5000.0,7.416e-05,2]
[406677529,1772068232160,-1680.0,7.417e-05,2]
[406677530,1772068232169,-225.97,7.5e-05,2]
[406677531,1772068232180,-474.6741923,7.531e-05,2]
[406677532,1772068232190,-8121.2783488,7.531e-05,2]
[406677533,1772068232199,-1713.7304879,7.531e-05,2]
[406677534,1772068232209,-18068.22374153,7.531e-05,2]
[406677538,1772068237835,-1617.9145956,7.531e-05,2]
[406677539,1772068237891,-304.0,7.531e-05,2]
[406677540,1772068237902,-2791.21611825,7.531e-05,2]
[406677541,1772068238004,-27131.28553281,7.531e-05,2]
[406677550,1772068239951,-425.63,7.531e-05,2]
[406677593,1772068240372,-500.0,7.531e-05,2]
[406677595,1772068240384,-613.08757848,7.531e-05,2]
[406677598,1772068240404,-420.86114321,7.531e-05,2]
[406677601,1772068240418,-922.18333418,7.531e-05,2]
[406677603,1772068240429,-1639.81824446,7.531e-05,2]
[406677605,1772068240440,-1587.711,7.531e-05,2]
[406677607,1772068240451,-3184.0340222,7.531e-05,2]
[406677610,1772068240462,-1309.84074736,7.531e-05,2]
[406677755,1772068242921,-207526.48594538,7.531e-05,2]
[406677756,1772068242932,-12806.65898301,7.531e-05,2]
[406677757,1772068242943,-12622.9959565,7.531e-05,2]
[406677758,1772068242980,-14882.40946771,7.531e-05,2]
[406677759,1772068243141,-779.36679134,7.531e-05,2]
[406677766,1772068245766,-3857.7123853,7.531e-05,2]
[406677767,1772068245778,-32173.85437175,7.531e-05,2]
[406677784,1772068288827,200.0,8.7e-05,3]
[406677785,1772068290910,400.0,8.8e-05,3]
[406677786,1772068292998,600.0,8.9e-05,3]
[406677787,1772068295127,800.0,9e-05,3]
[406677802,1772068629187,300.0,8.9e-05,3]
[406677803,1772068631284,700.0,9e-05,3]
[406677805,1772068698403,215.73,5.332e-05,2]
[406677806,1772068698612,215.73,5.865e-05,2]
[406677807,1772068698814,215.73,6.398e-05,2]
[406677809,1772068947645,500.0,6.469e-05,2]
[406677811,1772069032932,-5000.0,6.608e-05,2]
[406677812,1772069034948,-1074.65,6.608e-05,2]
[406677813,1772069034970,-3925.35,6.608e-05,2]
[406677814,1772069038269,-1074.65,6.608e-05,2]
[406677815,1772069038289,-250.0,6.608e-05,2]
[406677816,1772069038309,-207.0,6.608e-05,2]
[406677817,1772069038329,-3468.35,6.694e-05,2]
[406677818,1772069039743,-1531.65,6.694e-05,2]
[406677819,1772069039763,-3468.35,6.694e-05,2]
[406677820,1772069041085,-1531.65,6.694e-05,2]
[406677821,1772069041107,-250.0,6.776e-05,2]
[406677822,1772069045358,250.0,6.735e-05,2]
[406677835,1772069336362,500.0,6.23e-05,2]
[406677879,1772069432335,-300.0,6.556e-05,2]
[406677881,1772069432346,-300.0,6.556e-05,2]
[406677882,1772069432355,-45.79236201,6.556e-05,2]
[406677883,1772069432371,-254.20763799,6.556e-05,2]
[406677884,1772069432380,-1200.0,6.556e-05,2]
[406677885,1772069432389,-300.0,6.556e-05,2]
[406677886,1772069432398,-300.0,6.556e-05,2]
[406677887,1772069432407,-207.0,6.556e-05,2]
[406677888,1772069432416,-5034.09452339,6.556e-05,2]
[406677889,1772069432426,-252.49472955,6.556e-05,2]
[406677890,1772069432435,-35400.62,6.557e-05,2]
[406677891,1772069432445,-259.24,6.599e-05,2]
[406677892,1772069432454,-1000.0,6.871e-05,2]
[406677893,1772069432463,-946.44474214,6.871e-05,2]
[406677894,1772069432473,-500.0,6.873e-05,2]
[406677895,1772069432483,-500.0,6.873e-05,2]
[406677896,1772069432492,-150.0,6.93e-05,2]
[406677897,1772069432502,-215.73,6.931e-05,2]
[406677898,1772069432511,-1400.1490889,7.049e-05,2]
[406677899,1772069432522,-350.0,7.055e-05,2]
[406677900,1772069432532,-325.84,7.061e-05,2]
[406677901,1772069432542,-306.0,7.069e-05,2]
[406677902,1772069432551,-523.0,7.083e-05,2]
[406677903,1772069432560,-394.0,7.1e-05,2]
[406677904,1772069432571,-452.0,7.114e-05,2]
[406677905,1772069432581,-305.0,7.129e-05,2]
[406677906,1772069432590,-739.0,7.139e-05,2]
[406677907,1772069432599,-435.0,7.143e-05,2]
[406677908,1772069432610,-1773.0,7.153e-05,2]
[406677909,1772069432623,-411.0,7.157e-05,2]
[406677910,1772069432632,-552.0,7.168e-05,2]
[406677911,1772069432641,-772.74,7.179e-05,2]
[406677912,1772069432650,-1519.0,7.182e-05,2]
[406677913,1772069432668,-5265.16,7.188e-05,2]
[406677914,1772069432679,-219.0,7.206e-05,2]
[406677915,1772069432689,-420.0,7.211e-05,2]
[406677916,1772069432698,-300.0,7.211e-05,2]
[406677917,1772069432708,-1680.0,7.211e-05,2]
[406677918,1772069432718,-332.0,7.211e-05,2]
[406677919,1772069432728,-250.0,7.212e-05,2]
[406677920,1772069432738,-5058.58455729,7.212e-05,2]
[406677921,1772069432748,-250.0,7.212e-05,2]
[406677922,1772069432758,-5000.0,7.212e-05,2]
[406677923,1772069432767,-279.0,7.221e-05,2]
[406677924,1772069432776,-217.0,7.235e-05,2]
[406677925,1772069432785,-153.0,7.25e-05,2]
[406677926,1772069432795,-642.0,7.261e-05,2]
[406677927,1772069432805,-236.0,7.264e-05,2]
[406677928,1772069432814,-691.0,7.276e-05,2]
[406677929,1772069432823,-3569.21008894,7.439e-05,2]
[406677930,1772069432832,-18179.7173335,7.449e-05,2]
[406677931,1772069432841,-88351.0361221,7.449e-05,2]
[406677932,1772069432851,-6446.9644058,7.449e-05,2]
[406677933,1772069432860,-96465.6646038,7.449e-05,2]
[406677934,1772069432869,-1285.297866,7.449e-05,2]
[406677935,1772069432878,-152.85760328,7.449e-05,2]
[406677936,1772069432888,-215.73,7.465e-05,2]
[406677937,1772069432897,-3155.7489891,7.471e-05,2]
[406677938,1772069432906,-13135.2009343,7.471e-05,2]
[406677939,1772069432915,-508.88286319,7.523e-05,2]
[406677940,1772069432924,-227.23819075,7.523e-05,2]
[406677941,1772069432933,-3005.5727971,7.531e-05,2]
[406677942,1772069432942,-221.28547606,7.531e-05,2]
[406677943,1772069432952,-1281.76,7.555e-05,2]
[406677944,1772069432961,-7517.58,7.591e-05,2]
[406677945,1772069432970,-255.0,7.623e-05,2]
[406677946,1772069432980,-1600.0,7.628e-05,2]
[406677947,1772069432990,-29748.84,7.671e-05,2]
[406677948,1772069433000,-250.0,7.716e-05,2]
[406677949,1772069433010,-1281.76,7.758e-05,2]
[406677950,1772069433019,-208.66,7.771e-05,2]
[406677951,1772069433029,-152.85760327,7.815e-05,2]
[406677952,1772069433038,-387.0,7.932e-05,2]
[406677953,1772069433048,-2351.0,7.932e-05,2]
[406677954,1772069433058,-1281.76,7.961e-05,2]
[406677955,1772069433068,-215.73,7.998e-05,2]
[406677956,1772069433078,-2300.0,8e-05,2]
[406677957,1772069433087,-9384.86,8.058e-05,2]
[406677958,1772069433097,-9999.99,8.058e-05,2]
[406677959,1772069433107,-5311.72,8.058e-05,2]
[406677960,1772069433116,-9999.99,8.058e-05,2]
[406677961,1772069433126,-299.99,8.058e-05,2]
[406677962,1772069433136,-150.99,8.058e-05,2]
[406677963,1772069433146,-9999.99,8.058e-05,2]
[406677964,1772069433156,-9999.99,8.058e-05,2]
[406677965,1772069433166,-9999.99,8.058e-05,2]
[406677966,1772069433175,-999.99,8.058e-05,2]
[406677967,1772069433185,-150.99,8.058e-05,2]
[406677968,1772069433195,-1281.76,8.164e-05,2]
[406677969,1772069433205,-240.503778,8.178e-05,2]
[406677970,1772069433219,-152.85760327,8.182e-05,2]
[406677971,1772069433228,-150.0,8.219e-05,2]
[406677972,1772069433238,-500.0,8.219e-05,2]
[406677973,1772069433249,-500.0,8.219e-05,2]
[406677974,1772069433258,-150.0,8.219e-05,2]
[406677975,1772069433268,-150.0,8.219e-05,2]
[406677976,1772069433278,-500.0,8.219e-05,2]
[406677977,1772069433288,-500.0,8.219e-05,2]
[406677978,1772069433298,-500.0,8.219e-05,2]
[406677979,1772069433307,-150.0,8.219e-05,2]
[406677980,1772069433317,-150.0,8.219e-05,2]
[406677981,1772069433327,-150.0,8.219e-05,2]
[406677982,1772069433336,-500.0,8.219e-05,2]
[406677983,1772069433346,-500.0,8.219e-05,2]
[406677984,1772069433357,-150.0,8.219e-05,2]
[406677985,1772069433367,-150.0,8.219e-05,2]
[406677986,1772069433377,-500.0,8.219e-05,2]
[406677987,1772069433387,-151.33292021,8.219e-05,2]
[406677988,1772069433396,-150.0,8.219e-05,2]
[406677989,1772069433406,-150.0,8.219e-05,2]
[406677990,1772069433416,-500.0,8.219e-05,2]
[406677991,1772069433425,-500.0,8.219e-05,2]
[406677992,1772069433435,-177.51066156,8.219e-05,2]
[406677993,1772069433444,-150.0,8.219e-05,2]
[406677994,1772069433454,-155.94079705,8.219e-05,2]
[406677995,1772069433463,-158.18235366,8.219e-05,2]
[406677996,1772069433473,-500.0,8.219e-05,2]
[406677997,1772069433483,-500.0,8.219e-05,2]
[406677998,1772069433492,-500.0,8.219e-05,2]
[406677999,1772069433501,-150.0,8.219e-05,2]
[406678000,1772069433510,-150.0,8.219e-05,2]
[406678001,1772069433520,-500.0,8.219e-05,2]
[406678002,1772069433530,-342.027236,8.219e-05,2]
[406678003,1772069433540,-4518.45,8.219e-05,2]
[406678004,1772069433549,-152.22,8.219e-05,2]
[406678005,1772069433558,-1000.0,8.219e-05,2]
[406678006,1772069433571,-500.0,8.219e-05,2]
[406678007,1772069433580,-252.3681492,8.274e-05,2]
[406678008,1772069433589,-587.38563793,8.274e-05,2]
[406678009,1772069433602,-500.0,8.274e-05,2]
[406678010,1772069433615,-150.0,8.274e-05,2]
[406678011,1772069433625,-150.0,8.274e-05,2]
[406678012,1772069433634,-500.0,8.274e-05,2]